bitfinex/quotes_SOLUSD_20240814
["timestamp","ask_amount","ask_price","bid_price","bid_amount"]
[1723647482162,34.95,147.25,147.18,15.7841]
[1723647482602,0.37647,147.24,147.18,15.7841]
[1723647484495,34.95,147.21,147.18,15.7841]
[1723647484669,34.95,147.21,147.17,6.2784]
[1723647485193,0.12549,147.2,147.17,6.2784]
[1723647485484,34.95,147.21,147.17,6.2784]
[1723647487166,0.12549,147.22,147.17,6.2784]
[1723647487367,401.7,147.29,147.18,45.34324117]
[1723647487565,34.95,147.25,147.18,45.0]
[1723647487770,20.0,147.24,147.18,45.0]
[1723647488356,20.0,147.24,147.17,6.2784]
[1723647488563,34.95,147.21,147.17,6.2784]
[1723647490158,34.95,147.19,147.14,15.3663]
[1723647490487,34.95,147.17,147.14,15.3663]
[1723647492480,34.95,147.15,147.09,22.8962]
[1723647492783,0.25098,147.18,147.09,22.8962]
[1723647492784,34.95,147.11,147.09,22.8962]
[1723647492983,34.95,147.13,147.09,22.8962]
[1723647493365,20.0,147.14,147.09,22.8962]
[1723647493573,34.95,147.15,147.09,22.8962]
[1723647493980,34.95,147.17,147.1,1.35877454]
[1723647494181,34.95,147.19,147.09,22.8962]
[1723647494384,34.95,147.21,147.09,22.8962]
[1723647494572,34.95,147.19,147.09,22.8962]
[1723647494773,34.95,147.19,147.1,45.0]
[1723647495259,34.95,147.17,147.09,22.8962]
[1723647495459,34.95,147.15,147.09,22.8962]
[1723647495864,0.12549,147.14,147.09,22.8962]
[1723647496068,34.95,147.13,147.09,22.8962]
[1723647496285,0.37647,147.12,147.09,22.8962]
[1723647496490,0.25098,147.12,147.09,22.8962]
[1723647496869,34.95,147.11,147.09,6.2693]
[1723647498690,34.95,147.13,147.09,6.2693]
[1723647498990,34.95,147.15,147.09,6.2693]
[1723647499306,0.12549,147.13,147.09,6.2693]
[1723647499603,20.12549,147.14,147.09,6.2693]
[1723647499766,35.07549,147.15,147.09,6.2693]
[1723647500366,34.95,147.15,147.09,6.2693]
[1723647501795,0.37647,147.14,147.09,6.2693]
[1723647501997,34.95,147.17,147.09,6.2693]
[1723647502194,20.0,147.16,147.09,6.2693]
[1723647502509,20.0,147.16,147.1,45.0]
[1723647502989,34.95,147.15,147.09,6.2693]
[1723647503804,0.12549,147.14,147.09,6.2693]
[1723647504115,0.25098,147.14,147.09,6.2693]
[1723647504288,34.95,147.13,147.09,6.2693]
[1723647505391,0.12549,147.12,147.09,6.2693]
[1723647505613,0.12549,147.12,147.06,15.0235]
[1723647505614,34.95,147.11,147.06,15.0235]
[1723647506115,0.37647,147.12,147.06,15.0235]
[1723647506321,20.12549,147.12,147.06,15.0235]
[1723647506826,0.12549,147.12,147.06,15.0235]
[1723647507321,34.95,147.15,147.07,45.0]
[1723647507634,20.0,147.14,147.07,45.0]
[1723647509015,35.07549,147.15,147.07,45.0]
[1723647509337,20.12549,147.14,147.07,45.0]
[1723647509634,20.12549,147.14,147.06,15.0235]
[1723647509635,34.95,147.13,147.06,15.0235]
[1723647510038,28.01,147.12,147.06,15.0235]
[1723647510847,28.01,147.1,147.06,15.0235]
[1723647512144,28.01,147.12,147.06,15.0235]
[1723647512944,28.01,147.1,147.06,15.0235]
[1723647514044,0.25098,147.11,147.06,15.0235]
[1723647514232,48.01,147.12,147.06,15.0235]
[1723647515648,0.12549,147.11,147.06,15.0235]
[1723647515851,28.01,147.1,147.06,15.0235]
[1723647517648,30.72318676,147.1,147.06,15.0235]
[1723647518527,2.71318676,147.1,147.06,15.0235]
[1723647518744,48.01,147.12,147.06,15.0235]
[1723647520530,28.01,147.1,147.06,15.0235]
[1723647520725,28.01,147.08,147.06,15.0235]
[1723647523067,28.01,147.1,147.06,15.0235]
[1723647523251,28.01,147.1,146.97,7.10051468]
[1723647523252,28.01,147.07,147.01,15.1808]
[1723647523454,28.01,147.04,147.01,15.1808]
[1723647525170,20.0,147.09,147.01,15.1808]
[1723647525350,28.01,147.1,147.01,15.1808]
[1723647525740,28.01,147.1,147.02,45.0]
[1723647526372,28.01,147.08,147.02,45.0]
[1723647526575,2.16108106,147.12,147.02,45.0]
[1723647526576,30.17108106,147.12,147.02,45.0]
[1723647527366,30.17108106,147.12,147.03,6.2133]
[1723647527573,30.17108106,147.12,147.04,45.0]
[1723647528463,28.01,147.08,147.03,6.2133]
[1723647530676,28.01,147.1,147.04,45.0]
[1723647530840,28.01,147.1,147.03,6.2133]
[1723647530841,0.12549,147.09,147.03,6.2133]
[1723647531168,0.25098,147.09,147.03,6.2133]
[1723647532690,28.01,147.1,147.03,6.2133]
[1723647532691,28.01,147.1,147.04,45.0]
[1723647533743,0.12549,147.09,147.03,6.2133]
[1723647533946,28.01,147.08,147.03,6.2133]
[1723647534372,28.01,147.06,147.03,6.2133]
[1723647535583,28.01,147.06,147.01,15.1808]
[1723647536382,28.01,147.08,147.01,15.1808]
[1723647537272,28.01,147.08,147.02,45.0]
[1723647538163,28.01,147.08,147.01,15.1808]
[1723647538384,0.12549,147.07,147.01,15.1808]
[1723647538757,28.01,147.06,147.01,15.1808]
[1723647540947,28.01,147.06,146.99,6.1293]
[1723647542777,28.01,147.04,146.99,6.1293]
[1723647543584,28.01,147.04,146.97,15.8673]
[1723647543765,28.01,147.02,146.97,15.8673]
[1723647544485,28.01,147.0,146.95,6.0456]
[1723647544785,28.01,146.98,146.95,6.0456]
[1723647545356,28.01,146.98,146.94,0.8426791]
[1723647545882,28.01,146.96,146.94,0.8426791]
[1723647547491,0.12549,146.95,146.94,0.8426791]
[1723647547692,0.25098,146.95,146.94,0.8426791]
[1723647548078,20.37647,146.95,146.89,21.6506]
[1723647548286,28.13549,146.94,146.87,7.10264431]
[1723647548491,28.01,146.94,146.87,7.10264431]
[1723647548807,0.12549,146.93,146.87,7.10264431]
[1723647549486,28.01,146.92,146.87,7.10264431]
[1723647549695,28.01,146.92,146.85,6.5219]
[1723647550214,28.01,146.94,146.85,6.5219]
[1723647550404,0.12549,146.93,146.85,6.5219]
[1723647550696,0.37647,146.93,146.85,6.5219]
[1723647551204,0.25098,146.93,146.85,6.5219]
[1723647551366,0.25098,146.93,146.86,45.0]
[1723647551876,28.01,146.92,146.86,45.0]
[1723647552070,0.12549,146.93,146.86,45.0]
[1723647552278,48.01,146.95,146.86,45.0]
[1723647552476,28.01,146.95,146.86,45.0]
[1723647552720,20.0,146.94,146.86,45.0]
[1723647553579,0.12549,146.93,146.86,45.0]
[1723647553904,28.13549,146.93,146.86,45.0]
[1723647554086,20.12549,146.94,146.86,45.0]
[1723647554285,28.13549,146.96,146.86,45.0]
[1723647554488,20.0,146.95,146.86,45.0]
[1723647555389,28.01,146.96,146.86,45.0]
[1723647555701,28.01,146.98,146.88,6.1702]
[1723647555876,20.0,146.97,146.89,45.0]
[1723647557400,22.13461585,147.01,146.89,45.0]
[1723647557730,28.01,147.01,146.91,6.3146]
[1723647558012,28.01,147.01,146.92,45.0]
[1723647558309,28.01,147.03,146.92,45.0]
[1723647558798,28.01,147.05,146.94,6.464]
[1723647559096,28.01,147.05,146.95,66.3591136]
[1723647559414,258.9,147.07,146.97,6.464]
[1723647559415,286.91,147.07,146.97,6.464]
[1723647559575,286.91,147.07,146.98,65.0]
[1723647560305,28.01,147.03,146.97,6.464]
[1723647560785,0.12549,147.02,146.97,6.464]
[1723647562106,28.01,147.03,146.97,6.464]
[1723647563118,286.91,147.07,146.98,45.0]
[1723647563291,258.9,147.07,146.98,65.0]
[1723647563616,258.9,147.07,146.98,93.01]
[1723647563817,258.9,147.07,146.99,22.6598]
[1723647563988,28.01,147.09,147.0,45.0]
[1723647564415,28.01,147.07,147.01,20.0]
[1723647565595,28.01,147.07,147.0,20.0]
[1723647565792,28.01,147.07,147.01,45.0]
[1723647565985,35.03,147.08,147.01,45.0]
[1723647566418,0.12549,147.07,147.0,20.0]
[1723647566805,0.25098,147.07,147.0,20.0]
[1723647567612,0.12549,147.07,147.0,20.0]
[1723647567789,35.03,147.08,147.01,45.0]
[1723647567994,20.25098,147.09,147.01,45.0]
[1723647568293,35.28098,147.09,147.01,45.0]
[1723647572104,35.28098,147.09,147.0,20.0]
[1723647572309,0.12549,147.06,147.0,20.0]
[1723647572627,0.12549,147.04,146.99,22.6598]
[1723647573006,35.03,147.05,146.99,22.6598]
[1723647573417,0.25098,147.06,146.99,22.6598]
[1723647573601,35.03,147.07,146.99,22.6598]
[1723647573802,35.03,147.07,147.0,45.0]
[1723647574118,0.25098,147.08,147.0,45.0]
[1723647574319,0.12549,147.07,147.0,45.0]
[1723647574621,0.37647,147.07,147.0,45.0]
[1723647574827,0.12549,147.07,147.0,45.0]
[1723647576305,35.28098,147.07,146.99,22.6598]
[1723647576507,0.25098,147.06,146.99,22.6598]
[1723647578331,0.12549,147.05,146.99,22.6598]
[1723647579415,0.25098,147.06,146.99,22.6598]
[1723647579731,0.12549,147.06,147.0,45.0]
[1723647579916,0.37647,147.07,147.0,45.0]
[1723647582006,0.37647,147.07,146.99,22.6598]
[1723647582212,20.0,147.06,146.99,22.6598]
[1723647582538,0.12549,147.05,146.99,22.6598]
[1723647585834,0.25098,147.05,146.99,22.6598]
[1723647586042,0.12549,147.05,146.99,22.6598]
[1723647587216,0.12549,147.03,146.95,22.469]
[1723647587417,0.12549,147.01,146.95,22.469]
[1723647587915,28.17549,147.01,146.95,22.469]
[1723647592018,31.29549,147.01,146.95,22.469]
[1723647592433,31.17,146.99,146.95,6.1171]
[1723647593125,0.12549,147.01,146.95,6.1171]
[1723647593126,31.29549,147.01,146.95,6.1171]
[1723647596039,31.17,147.01,146.95,6.1171]
[1723647597423,20.0,147.03,146.95,6.1171]
[1723647597424,31.17,147.03,146.95,6.1171]
[1723647597622,31.17,147.03,146.96,45.0]
[1723647597850,0.12549,147.02,146.96,45.0]
[1723647598055,0.12549,147.02,146.95,6.1171]
[1723647598433,0.37647,147.02,146.95,6.1171]
[1723647598750,31.17,147.03,146.96,45.0]
[1723647598951,31.17,147.05,146.96,45.78738997]
[1723647599150,47.5988,147.07,146.97,16.79533639]
[1723647599332,47.5988,147.07,146.98,45.0]
[1723647599849,31.17,147.05,146.98,45.0]
[1723647600048,31.17,147.05,146.97,36.008]
[1723647600225,31.17,147.03,146.97,16.008]
[1723647600935,31.17,147.01,146.95,6.1171]
[1723647601137,31.17,146.99,146.93,16.008]
[1723647602129,31.17,146.97,146.93,16.008]
[1723647602330,31.17,146.97,146.91,6.1425]
[1723647602527,31.17,146.95,146.88,6.1497]
[1723647603932,16.26389,147.0,146.89,1.36138278]
[1723647604140,31.42098,147.01,146.91,16.6578]
[1723647604328,0.25098,147.0,146.92,1.36108413]
[1723647604843,0.25098,147.0,146.92,46.36108413]
[1723647605043,0.25098,147.0,146.93,1.36099149]
[1723647605044,0.12549,147.0,146.93,1.36099149]
[1723647605353,31.17,147.05,146.95,6.481]
[1723647605550,31.17,147.05,146.96,66.3598539]
[1723647605855,31.17,147.05,146.96,65.0]
[1723647606549,31.17,147.05,146.97,15.7173]
[1723647606760,0.12549,147.04,146.98,45.0]
[1723647607541,31.17,147.05,146.98,45.0]
[1723647608054,31.17,147.07,146.98,45.0]
[1723647608259,20.0,147.1,146.98,45.0]
[1723647608559,31.17,147.11,146.99,26.4652]
[1723647608739,31.17,147.11,147.0,45.0]
[1723647609751,0.12549,147.1,147.0,45.0]
[1723647609928,412.87,147.13,147.02,15.8096]
[1723647610129,20.0,147.12,147.03,45.0]
[1723647610347,31.17,147.11,147.03,45.0]
[1723647610757,31.17,147.13,147.03,45.0]
[1723647611358,31.17,147.09,147.02,15.8096]
[1723647611634,31.17,147.07,147.02,15.8096]
[1723647612139,31.17,147.09,147.02,15.8096]
[1723647612340,0.12549,147.08,147.02,15.8096]
[1723647612535,20.12549,147.06,146.99,6.4652]
[1723647612774,31.42098,147.05,146.99,6.4652]
[1723647612941,31.17,147.05,146.99,6.4652]
[1723647613134,0.12549,147.04,146.99,6.4652]
[1723647613549,31.17,147.03,146.99,6.4652]
[1723647614865,31.17,147.07,146.99,6.4652]
[1723647616055,51.17,147.05,146.99,6.4652]
[1723647616373,31.17,147.03,146.99,6.4652]
[1723647616552,31.17,147.01,146.95,6.2296]
[1723647616755,31.17,146.99,146.95,6.2296]
[1723647617273,51.42098,147.02,146.95,6.2296]
[1723647617443,31.17,147.0,146.95,6.2296]
[1723647618055,31.17,147.02,146.95,6.2296]
[1723647618440,0.12549,147.01,146.95,6.2296]
[1723647618769,31.17,147.02,146.95,6.2296]
[1723647619089,31.17,147.04,146.95,6.2296]
[1723647619367,31.17,147.04,146.96,45.0]
[1723647619674,31.17,147.06,146.96,45.0]
[1723647620359,51.17,147.06,146.96,45.0]
[1723647622692,0.37647,147.01,146.95,6.2296]
[1723647623066,0.12549,146.99,146.95,6.2296]
[1723647623263,0.25098,147.01,146.95,6.2296]
[1723647623460,0.25098,147.02,146.95,6.2296]
[1723647624176,0.12549,147.01,146.95,6.2296]
[1723647624376,31.29549,147.01,146.95,6.2296]
[1723647625253,31.17,146.99,146.95,6.2296]
[1723647625482,0.12549,146.98,146.93,16.1529]
[1723647625658,0.37647,146.98,146.93,16.1529]
[1723647625990,0.12549,146.96,146.91,6.3567]
[1723647626277,0.12549,146.94,146.91,6.3567]
[1723647626856,0.12549,146.92,146.87,6.64]
[1723647627272,0.12549,146.9,146.87,6.64]
[1723647627454,0.37647,146.9,146.87,6.64]
[1723647628272,0.25098,146.9,146.87,6.64]
[1723647628479,59.01,146.96,146.87,6.64]
[1723647628779,0.50196,146.95,146.87,6.64]
[1723647630365,65.50196,146.95,146.87,6.64]
[1723647630564,39.13549,146.9,146.85,15.6884]
[1723647630788,39.13549,146.9,146.83,6.0545]
[1723647630789,0.12549,146.88,146.83,6.0545]
[1723647631167,0.37647,146.89,146.83,6.0545]
[1723647631373,0.12549,146.91,146.83,6.0545]
[1723647631687,20.50196,146.91,146.83,6.0545]
[1723647632060,0.50196,146.91,146.83,6.0545]
[1723647634565,20.0,146.98,146.83,6.0545]
[1723647634867,20.0,146.99,146.83,6.0545]
[1723647634868,59.01,146.99,146.85,16.0786]
[1723647635087,39.01,146.97,146.86,20.0]
[1723647635684,39.01,146.97,146.87,45.0]
[1723647635885,20.0,146.99,146.89,6.0746]
[1723647636109,64.5371,147.0,146.89,6.0746]
[1723647636271,39.01,146.98,146.89,6.0746]
[1723647636794,0.12549,146.97,146.89,6.0746]
[1723647636994,39.01,146.96,146.89,6.0746]
[1723647637174,0.37647,146.95,146.89,6.0746]
[1723647637596,0.12549,146.93,146.89,6.0746]
[1723647637807,0.37647,146.93,146.89,6.0746]
[1723647637995,0.37647,146.93,146.86,20.0]
[1723647638176,39.01,146.92,146.85,22.2988]
[1723647638495,0.12549,146.87,146.81,22.0517]
[1723647638671,0.25098,146.87,146.81,22.0517]
[1723647640348,0.12549,146.87,146.81,22.0517]
[1723647640605,15.5693,146.98,146.82,20.0]
[1723647640898,39.01,146.96,146.84,6.0641]
[1723647641080,39.01,146.94,146.84,6.0641]
[1723647641271,39.01,146.94,146.85,20.0]
[1723647641895,39.01,146.94,146.86,45.0]
[1723647642196,39.01,146.94,146.85,20.0]
[1723647642778,39.01,146.94,146.86,45.0]
[1723647643204,0.37647,146.93,146.85,20.0]
[1723647645186,0.37647,146.93,146.84,6.0641]
[1723647645510,0.12549,146.92,146.84,6.0641]
[1723647645707,39.13549,146.94,146.84,6.0641]
[1723647645708,39.01,146.98,146.85,36.0354]
[1723647645913,39.01,146.98,146.85,81.0354]
[1723647647014,0.12549,146.97,146.85,81.0354]
[1723647647211,0.50196,146.97,146.85,81.0354]
[1723647647398,0.12549,146.95,146.85,81.0354]
[1723647648216,0.50196,146.95,146.85,81.0354]
[1723647649594,59.01,147.0,146.85,81.0354]
[1723647649595,39.01,147.0,146.87,16.327]
[1723647649800,6.797,147.1,146.9,6.316]
[1723647649801,680.6,147.06,146.9,6.316]
[1723647650014,39.01,147.02,146.91,65.0]
[1723647650384,39.01,147.0,146.91,65.0]
[1723647650814,39.01,146.98,146.91,20.0]
[1723647651116,39.01,146.96,146.9,6.316]
[1723647651422,0.12549,146.95,146.9,6.316]
[1723647651586,0.37647,146.95,146.9,6.316]
[1723647651788,0.25098,146.95,146.9,6.316]
[1723647652409,39.01,146.94,146.9,6.316]
[1723647653805,40.0,147.05,146.9,6.316]
[1723647653995,39.01,147.02,146.91,66.31186902]
[1723647654811,39.01,147.0,146.91,65.0]
[1723647655126,39.01,146.98,146.91,20.0]
[1723647656824,2.18909354,147.05,146.92,66.215]
[1723647657029,39.01,147.05,146.93,20.0]
[1723647657319,39.01,147.05,146.94,45.0]
[1723647657622,39.01,147.03,146.95,20.0]
[1723647657854,39.01,147.03,146.96,0.3690365]
[1723647658129,642.76159683,147.06,146.96,45.3690365]
[1723647658298,20.0,147.05,146.96,45.3690365]
[1723647658493,20.0,147.05,146.97,0.6983614]
[1723647658701,20.0,147.05,146.98,6.6439]
[1723647659320,39.01,147.07,146.98,6.6439]
[1723647659321,20.0,147.06,146.98,6.6439]
[1723647660642,0.37647,147.05,146.98,6.6439]
[1723647660938,39.01,147.04,146.98,6.6439]
[1723647661113,0.25098,147.03,146.98,6.6439]
[1723647661315,20.25098,147.03,146.98,6.6439]
[1723647662207,0.12549,147.05,146.98,6.6439]
[1723647662208,20.12549,147.05,146.98,6.6439]
[1723647662407,0.25098,147.04,146.98,6.6439]
[1723647662939,39.26098,147.04,146.98,6.6439]
[1723647663149,20.0,147.03,146.98,6.6439]
[1723647663447,39.38647,147.02,146.98,6.6439]
[1723647663939,20.0,147.01,146.98,6.6439]
[1723647664517,39.01,147.0,146.93,6.4834]
[1723647665119,20.0,147.01,146.93,7.56724493]
[1723647665309,39.38647,147.02,146.93,7.56724493]
[1723647665514,20.0,147.01,146.93,6.4834]
[1723647665745,0.12549,147.0,146.93,6.4834]
[1723647666120,20.0,147.08,146.93,7.65778129]
[1723647666332,39.01,147.07,146.94,66.17594492]
[1723647666522,39.01,147.07,146.95,21.4957]
[1723647666720,39.01,147.07,146.97,6.301]
[1723647667053,39.01,147.07,146.99,15.7164]
[1723647667340,39.01,147.1,147.01,6.301]
[1723647667532,39.01,147.1,147.02,1.21174668]
[1723647667850,258.9,147.13,147.02,46.21174668]
[1723647668028,39.01,147.14,147.02,46.21174668]
[1723647668230,39.01,147.14,147.03,20.0]
[1723647668431,39.01,147.14,147.04,46.21158186]
[1723647668637,39.01,147.14,147.05,20.0]
[1723647669513,39.13549,147.12,147.02,21.21134674]
[1723647669712,39.13549,147.12,147.03,45.0]
[1723647669934,39.13549,147.12,147.04,21.21118197]
[1723647670238,39.01,147.12,147.05,45.0]
[1723647670540,39.01,147.1,147.01,6.301]
[1723647670844,0.12549,147.09,147.02,20.0]
[1723647671151,0.12549,147.09,147.01,6.301]
[1723647671152,39.01,147.08,147.01,6.301]
[1723647671739,39.01,147.06,147.01,6.301]
[1723647672645,0.12549,147.05,147.01,6.301]
[1723647672862,39.01,147.04,147.01,6.301]
[1723647675043,0.25098,147.03,147.01,6.301]
[1723647675926,0.25098,147.03,146.99,15.7164]
[1723647676123,0.25098,147.03,146.98,6.5035]
[1723647676124,39.01,147.0,146.98,6.5035]
[1723647676345,39.01,147.0,146.95,16.4983]
[1723647676531,39.01,147.02,146.95,16.4983]
[1723647677163,0.12549,147.01,146.95,16.4983]
[1723647677464,39.01,147.0,146.95,16.4983]
[1723647678756,38.97,147.0,146.95,16.4983]
[1723647679132,0.12549,146.99,146.95,16.4983]
[1723647679661,20.12549,146.99,146.95,16.4983]
[1723647680371,0.12549,146.99,146.95,16.4983]
[1723647680557,20.25098,146.99,146.95,16.4983]
[1723647680745,39.09549,146.98,146.94,6.5035]
[1723647680946,0.12549,146.95,146.91,16.061]
[1723647682144,0.12549,146.98,146.91,16.061]
[1723647682344,59.09549,146.99,146.91,16.57390386]
[1723647683346,20.0,146.99,146.92,1.02897767]
[1723647683664,38.97,147.01,146.93,1.02890763]
[1723647683978,40.0,147.05,146.93,1.02890763]
[1723647683979,38.97,147.05,146.94,6.2719]
[1723647684143,38.97,147.07,146.95,82.42523121]
[1723647684345,38.97,147.07,146.96,1.02886119]
[1723647684736,38.97,147.09,146.97,6.2592]
[1723647684985,58.97,147.14,147.0,6.2592]
[1723647684986,38.97,147.11,147.0,6.2592]
[1723647685144,38.97,147.14,147.01,1.03879954]
[1723647685350,38.97,147.14,147.01,65.0]
[1723647685558,38.97,147.12,147.01,65.0]
[1723647686544,0.25098,147.11,147.01,65.0]
[1723647687973,20.25098,147.11,147.01,65.0]
[1723647690394,20.25098,147.11,147.02,1.36000252]
[1723647690568,38.97,147.14,147.03,22.1659]
[1723647690766,38.97,147.17,147.05,6.2213]
[1723647691077,38.97,147.17,147.06,46.35949804]
[1723647691257,38.97,147.17,147.07,20.0]
[1723647691571,38.97,147.17,147.08,46.35948533]
[1723647691776,38.97,147.17,147.08,45.0]
[1723647692155,20.0,147.16,147.09,1.35950259]
[1723647692362,421.7,147.24,147.11,6.2848]
[1723647692683,38.97,147.24,147.12,66.3588498]
[1723647692881,38.97,147.24,147.12,65.0]
[1723647693677,38.97,147.24,147.13,1.35899178]
[1723647694085,20.0,147.23,147.13,1.35899178]
[1723647694262,38.97,147.24,147.13,1.35899178]
[1723647694992,38.97,147.22,147.12,65.0]
[1723647695200,38.97,147.22,147.12,66.35914799]
[1723647695691,20.12549,147.21,147.12,66.35914799]
[1723647696557,38.97,147.18,147.11,6.2848]
[1723647698506,38.97,147.16,147.11,6.2848]
[1723647699073,38.97,147.14,147.11,6.2848]
[1723647699702,38.97,147.12,147.07,6.1088]
[1723647699905,38.97,147.08,147.07,6.1088]
[1723647700110,38.97,147.08,147.03,6.1088]
[1723647700310,38.97,147.06,147.03,6.1088]
[1723647700899,38.97,147.04,146.99,6.559]
[1723647701109,0.12549,147.03,146.99,6.559]
[1723647701694,0.25098,147.03,146.99,6.559]
[1723647702008,38.97,147.04,146.99,6.559]
[1723647703608,0.12549,147.05,146.99,6.559]
[1723647703813,20.37647,147.05,146.99,6.559]
[1723647705110,38.97,147.04,146.99,6.559]
[1723647705808,0.12549,147.03,146.99,6.559]
[1723647706184,20.37647,147.05,146.99,6.559]
[1723647706422,20.25098,147.05,146.99,6.559]
[1723647708110,20.12549,147.05,146.99,6.559]
[1723647708705,0.25098,147.04,146.99,6.559]
[1723647708884,0.12549,147.03,146.99,6.559]
[1723647709397,38.97,147.02,146.99,6.559]
[1723647710087,0.12549,147.01,146.99,6.559]
[1723647710293,20.25098,147.01,146.97,15.8196]
[1723647710700,38.97,147.0,146.97,15.8196]
[1723647711311,0.12549,146.99,146.96,6.5924]
[1723647711508,0.12549,146.99,146.88,7.07708779]
[1723647711509,0.12549,146.97,146.92,22.9581]
[1723647711827,38.97,146.96,146.92,22.9581]
[1723647712885,38.97,146.94,146.92,6.3976]
[1723647713089,0.12549,146.93,146.88,22.3314]
[1723647713294,39.26098,146.93,146.88,22.3314]
[1723647713916,0.12549,146.91,146.88,6.3658]
[1723647714130,0.37647,146.91,146.88,6.3658]
[1723647714692,0.12549,146.91,146.88,6.3658]
[1723647715093,0.37647,146.91,146.88,6.3658]
[1723647716320,39.38647,146.91,146.88,6.3658]
[1723647716491,39.38647,146.91,146.84,22.7645]
[1723647717196,39.01,146.87,146.84,6.6233]
[1723647719302,39.13549,146.89,146.84,6.6233]
[1723647719514,20.0,146.88,146.84,6.6233]
[1723647720042,0.12549,146.87,146.84,6.6233]
[1723647720190,39.51196,146.87,146.8,21.4925]
[1723647720527,0.37647,146.87,146.8,21.4925]
[1723647720692,20.0,146.91,146.8,21.4925]
[1723647720891,0.37647,146.9,146.8,21.4925]
[1723647721107,40.0,146.91,146.81,20.0]
[1723647721421,39.01,146.9,146.82,45.0]
[1723647721919,20.0,146.89,146.82,45.0]
[1723647723317,0.12549,146.88,146.81,20.0]
[1723647723532,39.51196,146.88,146.8,21.4925]
[1723647723705,39.01,146.86,146.8,21.4925]
[1723647724824,20.0,146.87,146.8,21.4925]
[1723647724825,0.12549,146.83,146.8,21.4925]
[1723647725031,0.12549,146.81,146.79,0.8426791]
[1723647725199,20.37647,146.81,146.79,0.8426791]
[1723647725400,39.01,146.8,146.79,0.8426791]
[1723647725702,59.13549,146.8,146.79,0.8426791]
[1723647726111,59.51196,146.8,146.79,0.8426791]
[1723647726314,79.51196,146.8,146.79,0.8426791]
[1723647726513,0.12549,146.79,146.73,6.5066]
[1723647726722,39.01,146.75,146.72,16.526]
[1723647727092,0.12549,146.77,146.72,16.526]
[1723647727093,39.13549,146.77,146.72,16.526]
[1723647727297,20.0,146.76,146.72,16.526]
[1723647727723,0.12549,146.75,146.72,16.526]
[1723647727953,0.12549,146.75,146.69,6.5066]
[1723647728102,0.50196,146.75,146.69,6.5066]
[1723647728309,0.12549,146.75,146.69,6.5066]
[1723647728638,0.25098,146.77,146.69,6.5066]
[1723647728811,20.0,146.76,146.69,6.5066]
[1723647729334,0.12549,146.73,146.69,6.5066]
[1723647729501,0.25098,146.73,146.69,6.5066]
[1723647731099,20.25098,146.73,146.67,15.8235]
[1723647731300,0.12549,146.71,146.67,15.8235]